bitfinex/quotes_BTCUSD_20241117
["timestamp","ask_amount","ask_price","bid_price","bid_amount"]
[1731880681144,0.00670204,89100.0,89098.0,0.00701641]
[1731880681360,0.224456,89104.0,89099.0,0.00701641]
[1731880681618,0.002,89105.0,89100.0,0.00701641]
[1731880681845,0.008,89101.0,89094.0,0.11224]
[1731880682059,0.112228,89104.0,89095.0,0.11925551]
[1731880682268,0.224458,89104.0,89095.0,0.00701651]
[1731880682486,0.018,89100.0,89092.0,0.112242]
[1731880682714,0.112234,89099.0,89090.0,0.112245]
[1731880682929,0.007,89100.0,89087.0,0.04783498]
[1731880683151,0.007,89100.0,89096.0,0.00701651]
[1731880683372,0.007,89100.0,89097.0,0.00701663]
[1731880683583,0.005,89103.0,89097.0,0.00701663]
[1731880683812,0.005,89103.0,89096.0,0.00701651]
[1731880683813,0.007,89103.0,89096.0,0.00701651]
[1731880684022,0.112235,89099.0,89096.0,0.00701651]
[1731880684545,0.013,89100.0,89096.0,0.00701651]
[1731880684760,0.112235,89099.0,89096.0,0.00701651]
[1731880684974,0.002,89100.0,89096.0,0.00701651]
[1731880685188,0.002,89097.0,89096.0,0.00701651]
[1731880685397,0.114237,89097.0,89096.0,0.00701651]
[1731880685816,0.119237,89097.0,89096.0,0.00701651]
[1731880686049,0.119237,89097.0,89096.0,0.00787231]
[1731880686262,0.22829955,89097.0,89096.0,0.00787231]
[1731880686723,0.23329955,89097.0,89096.0,0.00787231]
[1731880686968,0.23329955,89097.0,89096.0,0.0008558]
[1731880687201,0.24229955,89097.0,89096.0,0.0008558]
[1731880687865,0.25629955,89097.0,89096.0,0.0008558]
[1731880688107,0.002,89088.0,89082.0,0.16828312]
[1731880688295,0.002,89083.0,89082.0,0.16828312]
[1731880688525,0.002,89083.0,89081.0,3.0]
[1731880688526,0.002,89082.0,89081.0,3.0]
[1731880689222,0.112256,89082.0,89081.0,3.0]
[1731880690356,0.119256,89082.0,89081.0,3.0]
[1731880691000,0.120256,89082.0,89081.0,3.0]
[1731880691415,0.147256,89082.0,89081.0,3.0]
[1731880691893,0.120256,89082.0,89081.0,3.0]
[1731880692101,0.140256,89082.0,89081.0,3.0]
[1731880692776,0.139256,89082.0,89081.0,3.0]
[1731880692992,0.166256,89082.0,89081.0,3.0]
[1731880693218,0.168256,89082.0,89081.0,3.0]
[1731880693460,0.17963103,89082.0,89081.0,3.0]
[1731880693682,0.12563103,89082.0,89081.0,3.0]
[1731880694149,0.029,89082.0,89081.0,3.0]
[1731880694384,0.009,89082.0,89081.0,3.0]
[1731880694589,0.027,89082.0,89081.0,3.0]
[1731880694809,0.027,89082.0,89081.0,2.99995]
[1731880695246,0.029,89082.0,89081.0,2.99995]
[1731880695458,0.027,89082.0,89081.0,2.99995]
[1731880695945,0.054,89082.0,89081.0,2.99995]
[1731880696176,0.056,89082.0,89081.0,2.99995]
[1731880696596,0.168256,89082.0,89081.0,2.99995]
[1731880697353,0.173256,89082.0,89081.0,3.0008065]
[1731880698283,0.059,89082.0,89081.0,3.0008065]
[1731880699155,0.059,89082.0,89081.0,3.1130635]
[1731880699373,0.059,89082.0,89081.0,3.0008065]
[1731880699621,0.059,89082.0,89081.0,3.1130635]
[1731880699834,0.059,89082.0,89081.0,3.0008065]
[1731880700064,0.054,89082.0,89081.0,3.1130635]
[1731880700958,0.059,89082.0,89081.0,3.0008065]
[1731880701190,0.059,89082.0,89081.0,3.1130635]
[1731880702278,0.054,89082.0,89081.0,3.1130635]
[1731880703003,0.054,89082.0,89081.0,3.1927635]
[1731880703697,0.027,89082.0,89081.0,3.1927635]
[1731880703911,0.005,89087.0,89086.0,0.112251]
[1731880704155,0.006,89082.0,89081.0,3.0008065]
[1731880704393,0.008,89082.0,89081.0,3.0008065]
[1731880705242,0.22931855,89082.0,89081.0,3.0008065]
[1731880705452,0.11706255,89082.0,89081.0,3.0008065]
[1731880705654,0.11806255,89082.0,89081.0,3.0008065]
[1731880705864,0.22931855,89082.0,89081.0,3.0008065]
[1731880706318,0.22831855,89082.0,89081.0,3.0008065]
[1731880706541,0.25131855,89082.0,89081.0,3.0008065]
[1731880706967,0.22831855,89082.0,89081.0,3.0008065]
[1731880707463,0.16306255,89082.0,89081.0,3.0008065]
[1731880707680,0.27531855,89082.0,89081.0,3.0008065]
[1731880708531,0.16306255,89082.0,89081.0,3.0008065]
[1731880708971,0.27531855,89082.0,89081.0,3.0008065]
[1731880709188,0.0537088,89082.0,89081.0,3.0008065]
[1731880709401,0.0537088,89082.0,89081.0,3.1130635]
[1731880709615,0.0487088,89082.0,89081.0,3.1130635]
[1731880710091,0.0267088,89082.0,89081.0,3.1130635]
[1731880710511,0.0537088,89082.0,89081.0,3.1130635]
[1731880710937,0.0017088,89082.0,89081.0,3.1130635]
[1731880711157,0.0017088,89082.0,89081.0,3.1140635]
[1731880711806,0.0017088,89082.0,89081.0,3.1937635]
[1731880712717,0.0047088,89082.0,89081.0,3.2007808]
[1731880712927,0.0017088,89082.0,89081.0,3.2007808]
[1731880713106,0.0017088,89082.0,89081.0,3.1997808]
[1731880713305,0.0047088,89082.0,89081.0,3.1997808]
[1731880713530,0.0047088,89082.0,89081.0,3.1927635]
[1731880713764,0.0067088,89082.0,89081.0,3.1927635]
[1731880713987,0.0067088,89082.0,89081.0,3.1937635]
[1731880714124,0.0047088,89082.0,89081.0,3.1937635]
[1731880714939,0.0047088,89082.0,89081.0,3.20078062]
[1731880715493,0.0017088,89082.0,89081.0,3.1927635]
[1731880715692,0.0027088,89082.0,89081.0,3.1937635]
[1731880716068,0.0027088,89082.0,89081.0,3.1967635]
[1731880716280,0.0037088,89082.0,89081.0,3.1977635]
[1731880716498,0.0037088,89082.0,89081.0,3.30682605]
[1731880716682,0.0027088,89082.0,89081.0,3.30282605]
[1731880717548,0.0037088,89082.0,89081.0,3.30682605]
[1731880719456,0.001713,89102.0,89101.0,0.112232]
[1731880719705,0.001713,89102.0,89081.0,2.99244092]
[1731880719706,0.117256,89082.0,89081.0,2.99244092]
[1731880719949,0.122256,89082.0,89081.0,2.99244092]
[1731880720171,0.122256,89082.0,89081.0,2.98844092]
[1731880720418,0.03803061,89082.0,89081.0,2.99144092]
[1731880720648,0.20534576,89082.0,89081.0,2.99244092]
[1731880720883,0.20634542,89082.0,89081.0,2.98844092]
[1731880721380,0.22434542,89082.0,89081.0,2.96317365]
[1731880721606,0.23105422,89082.0,89081.0,2.96317365]
[1731880721835,0.23055291,89082.0,89081.0,2.96317365]
[1731880722308,0.22955291,89082.0,89081.0,2.96217365]
[1731880722531,0.30619731,89082.0,89081.0,2.96217365]
[1731880722729,0.25259046,89082.0,89081.0,2.96417365]
[1731880722990,0.23459046,89082.0,89081.0,2.96317365]
[1731880723227,0.23759046,89082.0,89081.0,2.96317365]
[1731880723456,0.22057772,89082.0,89081.0,2.96217365]
[1731880723684,0.23157772,89082.0,89081.0,2.96317365]
[1731880723928,0.24857772,89082.0,89081.0,2.96417365]
[1731880724187,0.22057772,89082.0,89081.0,2.96217365]
[1731880724418,0.23257772,89082.0,89081.0,2.92807927]
[1731880725101,0.60066534,89082.0,89081.0,2.92807927]
[1731880725577,0.60666534,89082.0,89081.0,2.92807927]
[1731880725796,0.60666534,89082.0,89081.0,2.92707927]
[1731880725797,0.57462776,89082.0,89081.0,2.92707927]
[1731880726027,0.59562776,89082.0,89081.0,2.92907927]
[1731880726263,0.22754014,89082.0,89081.0,2.92907927]
[1731880726534,0.20654014,89082.0,89081.0,2.92707927]
[1731880726756,0.22554014,89082.0,89081.0,2.92907927]
[1731880726986,0.22551269,89082.0,89081.0,2.92907927]
[1731880727213,0.36708101,89082.0,89081.0,2.92807927]
[1731880727439,0.36608101,89082.0,89081.0,2.92807927]
[1731880727669,0.36408101,89082.0,89081.0,2.92807927]
[1731880727895,0.21651269,89082.0,89081.0,2.92807927]
[1731880728368,0.36608101,89082.0,89081.0,2.92807927]
[1731880728837,0.1704941,89082.0,89081.0,2.92807927]
[1731880729130,0.26020862,89082.0,89081.0,2.92803927]
[1731880729365,0.1734941,89082.0,89081.0,2.92903927]
[1731880729588,0.1654941,89082.0,89081.0,2.92703927]
[1731880729818,0.1734941,89082.0,89081.0,2.92803927]
[1731880730038,0.1864941,89082.0,89081.0,2.92903927]
[1731880730524,0.39528359,89082.0,89081.0,2.92903927]
[1731880730940,0.37465665,89082.0,89081.0,2.92903927]
[1731880731180,0.5354,89090.0,89081.0,2.92903927]
[1731880731416,0.67354052,89083.0,89082.0,0.00224495]
[1731880731641,0.67354052,89083.0,89081.0,0.46879307]
[1731880731642,0.11224,89095.0,89081.0,0.46879307]
[1731880731889,0.67354052,89088.0,89081.0,0.46879307]
[1731880732113,0.112256,89082.0,89081.0,0.46779307]
[1731880732576,0.22131855,89082.0,89081.0,0.46779307]
[1731880732803,0.22131855,89082.0,89081.0,0.46679307]
[1731880733020,0.22131855,89082.0,89081.0,0.46779307]
[1731880733021,0.32802735,89082.0,89081.0,0.46779307]
[1731880733245,0.32802735,89082.0,89081.0,0.46879307]
[1731880733458,0.32802735,89082.0,89081.0,0.46679307]
[1731880733901,0.24102735,89082.0,89081.0,0.46779307]
[1731880734160,0.67354052,89077.0,89070.0,0.000856]
[1731880734365,0.112285,89059.0,89058.0,0.00956996]
[1731880734585,0.22134755,89059.0,89058.0,0.00956996]
[1731880734808,0.32134755,89059.0,89058.0,0.00956996]
[1731880735702,0.34134755,89059.0,89058.0,0.01056996]
[1731880735949,0.34134755,89059.0,89058.0,0.01256996]
[1731880736175,0.32134755,89059.0,89058.0,0.00956996]
[1731880736401,0.34134755,89059.0,89058.0,0.01056996]
[1731880736625,0.34134755,89059.0,89058.0,0.01256996]
[1731880736858,0.34134755,89059.0,89058.0,0.01056996]
[1731880737089,0.34134755,89059.0,89058.0,0.01256996]
[1731880737783,0.32134755,89059.0,89058.0,0.01156996]
[1731880738053,0.4572323,89059.0,89058.0,0.01156996]
[1731880738295,0.41194514,89059.0,89058.0,0.01056996]
[1731880738520,0.41194514,89059.0,89058.0,0.01256996]
[1731880738749,0.39594514,89059.0,89058.0,0.01156996]
[1731880738973,0.41194514,89059.0,89058.0,0.01056996]
[1731880739208,0.37034755,89059.0,89058.0,0.01256996]
[1731880739465,0.33734755,89059.0,89058.0,0.01256996]
[1731880740410,0.33734755,89059.0,89058.0,0.12485596]
[1731880740411,0.016,89059.0,89058.0,0.12485596]
[1731880741341,0.0017088,89082.0,89058.0,0.12485596]
[1731880741342,0.16842862,89072.0,89058.0,0.12385596]
[1731880741551,0.16842862,89072.0,89068.0,0.224545]
[1731880741775,0.0017088,89082.0,89075.0,0.112264]
[1731880741992,0.0017088,89082.0,89072.0,0.224536]
[1731880742204,0.0017088,89082.0,89081.0,0.112257]
[1731880742868,0.0017088,89082.0,89061.0,0.224563]
[1731880743083,0.0017088,89082.0,89075.0,0.002]
[1731880743084,0.0067088,89082.0,89075.0,0.002]
[1731880743324,0.0067088,89082.0,89081.0,0.112257]
[1731880743325,0.0077088,89082.0,89081.0,0.112257]
[1731880743567,0.0077088,89082.0,89081.0,0.28051955]
[1731880744012,0.0077088,89082.0,89081.0,0.38473504]
[1731880744504,0.0067088,89082.0,89081.0,0.38473504]
[1731880744733,0.0067088,89082.0,89081.0,0.42241324]
[1731880744964,0.0017088,89082.0,89081.0,0.42141324]
[1731880745214,0.001713,89102.0,89101.0,0.112232]
[1731880745452,0.001713,89102.0,89101.0,0.11447633]
[1731880745692,0.001713,89102.0,89101.0,0.21869182]
[1731880745944,0.001713,89102.0,89101.0,0.21644749]
[1731880746186,0.001713,89102.0,89101.0,0.25340671]
[1731880746429,0.001713,89102.0,89101.0,0.49536926]
[1731880746637,0.001713,89102.0,89101.0,0.50136926]
[1731880746843,0.001713,89102.0,89101.0,0.50086926]
[1731880747807,0.001713,89102.0,89101.0,0.49486926]
[1731880748038,0.001713,89102.0,89101.0,0.51486926]
[1731880748320,0.001713,89102.0,89101.0,0.50086926]
[1731880748548,0.001713,89102.0,89101.0,0.49486926]
[1731880748786,0.001713,89102.0,89101.0,0.50086926]
[1731880749027,0.001713,89102.0,89101.0,0.51486926]
[1731880749492,0.16842862,89143.0,89123.0,0.005]
[1731880749703,0.16842862,89143.0,89124.0,0.112203]
[1731880750176,0.16842862,89143.0,89133.0,0.112191]
[1731880750702,0.16842862,89143.0,89132.0,0.224386]
[1731880750964,0.16842862,89143.0,89117.0,0.10421549]
[1731880751195,0.16842862,89143.0,89138.0,0.112185]
[1731880751424,0.16842862,89143.0,89122.0,0.005]
[1731880751425,0.10906255,89142.0,89107.0,0.005]
[1731880751656,0.224363,89141.0,89125.0,0.28062862]
[1731880751886,0.002,89134.0,89112.0,0.03706925]
[1731880752152,0.002,89134.0,89127.0,0.112198]
[1731880752384,0.002,89134.0,89127.0,0.112199]
[1731880752633,0.002,89134.0,89117.0,0.226424]
[1731880752634,0.002,89134.0,89117.0,0.224424]
[1731880752858,0.224353,89146.0,89113.0,0.16842862]
[1731880752859,0.16842862,89159.0,89146.0,0.22435]
[1731880753082,0.16842862,89139.0,89138.0,0.135185]
[1731880753301,0.28058762,89159.0,89148.0,0.112172]
[1731880753518,0.28058762,89159.0,89138.0,0.023]
[1731880753519,0.16842862,89159.0,89153.0,0.112165]
[1731880753758,0.27749117,89168.0,89144.0,0.16842862]
[1731880753985,0.27749117,89168.0,89161.0,0.112155]
[1731880754214,0.27749117,89168.0,89146.0,0.336526]
[1731880754435,0.27749117,89168.0,89145.0,0.023]
[1731880754436,0.10906255,89168.0,89153.0,0.16842862]
[1731880754710,0.10906255,89168.0,89156.0,0.224324]
[1731880754948,0.10906255,89168.0,89153.0,0.16842862]
[1731880755170,0.001712,89169.0,89161.0,0.002]
[1731880755400,0.002,89168.0,89161.0,0.004]
[1731880755636,0.002,89168.0,89161.0,0.002]
[1731880755867,0.001712,89169.0,89159.0,0.224318]
[1731880756102,0.002,89168.0,89167.0,0.112149]
[1731880756832,0.001709,89172.0,89171.0,0.112144]
[1731880756833,0.000421,89172.0,89171.0,0.112144]
[1731880757507,0.000421,89172.0,89171.0,0.112044]
[1731880758147,0.000421,89172.0,89171.0,0.135044]
[1731880758370,0.000421,89172.0,89171.0,0.15128657]
[1731880758578,0.002421,89172.0,89171.0,0.15128657]
[1731880758815,0.002421,89172.0,89171.0,0.13728657]
[1731880759070,0.000421,89172.0,89171.0,0.13828657]
[1731880759304,0.000421,89172.0,89171.0,0.135044]
[1731880759542,0.000421,89172.0,89171.0,0.25810655]
[1731880759798,0.002421,89172.0,89171.0,0.26310655]
[1731880760027,0.002421,89172.0,89171.0,0.37034891]
[1731880760265,0.002421,89172.0,89171.0,0.36810655]
[1731880760478,0.002421,89172.0,89171.0,0.44940655]
[1731880760975,0.002421,89172.0,89171.0,0.46488339]
[1731880761206,0.000421,89172.0,89171.0,0.46488339]
[1731880761440,0.16842862,89196.0,89191.0,0.112118]
[1731880761656,0.16842862,89196.0,89191.0,0.135118]
[1731880761871,0.16842862,89205.0,89191.0,0.135118]
[1731880762300,0.16842862,89214.0,89191.0,0.135118]
[1731880762729,0.16842862,89214.0,89211.0,0.112093]
[1731880762730,0.13713762,89214.0,89211.0,0.112093]
[1731880762969,0.1,89228.0,89191.0,0.023]
[1731880762970,0.1,89222.0,89214.0,0.11209]
[1731880763203,0.212081,89222.0,89214.0,0.11209]
[1731880763421,0.0823,89232.0,89214.0,0.11209]
[1731880763640,0.112063,89235.0,89214.0,0.13733165]
[1731880763854,0.22411,89242.0,89214.0,0.13733165]
[1731880763855,0.112062,89237.0,89214.0,0.13733165]
[1731880764068,0.22411,89242.0,89214.0,0.13733165]
[1731880764069,0.112059,89239.0,89214.0,0.13733165]
[1731880764286,0.16842862,89245.0,89214.0,0.52903831]
[1731880764497,0.16842862,89245.0,89214.0,0.35415255]
[1731880764733,0.16842862,89236.0,89214.0,0.23509]
[1731880764967,0.224157,89223.0,89214.0,0.002]
[1731880765192,0.224157,89223.0,89211.0,0.002]
[1731880765193,0.11209,89214.0,89211.0,0.002]
[1731880765423,0.224169,89219.0,89205.0,0.16842862]
[1731880765649,0.11209,89214.0,89205.0,0.28052862]
[1731880765872,0.1187976,89215.0,89214.0,0.005]
[1731880766089,0.1187976,89215.0,89184.0,0.16842862]
[1731880766090,0.212108,89199.0,89198.0,0.16842862]
[1731880766846,0.212108,89199.0,89184.0,0.16842862]
[1731880766847,0.1,89197.0,89184.0,0.16842862]
[1731880767061,0.112115,89194.0,89193.0,0.16842862]
[1731880767322,0.112115,89194.0,89184.0,0.16842862]
[1731880767323,0.224248,89187.0,89184.0,0.16842862]
[1731880767531,0.112126,89185.0,89184.0,0.16842862]
[1731880767981,0.112126,89185.0,89176.0,0.112137]
[1731880768205,0.112123,89188.0,89184.0,0.002]
[1731880768667,0.112124,89187.0,89184.0,0.004]
[1731880768877,0.112126,89185.0,89184.0,0.004]
[1731880769083,0.112126,89185.0,89175.0,0.16842862]
[1731880769288,0.112128,89184.0,89176.0,0.112137]
[1731880769491,0.112124,89187.0,89175.0,0.16842862]
[1731880769735,0.224242,89189.0,89177.0,0.112136]
[1731880769736,0.112126,89185.0,89177.0,0.112136]
[1731880769943,0.112126,89185.0,89175.0,0.28056662]
[1731880770193,0.224247,89187.0,89176.0,0.112137]
[1731880770396,0.224237,89192.0,89176.0,0.002]
[1731880770622,0.224237,89192.0,89184.0,0.002]
[1731880770623,0.121126,89185.0,89184.0,0.002]
[1731880771103,0.03003335,89216.0,89186.0,0.005]
[1731880771329,0.03003335,89216.0,89178.0,0.023]
[1731880771330,0.36150077,89215.0,89193.0,0.224231]
[1731880771572,0.10906255,89214.0,89185.0,0.112126]
[1731880771812,0.15648153,89209.0,89186.0,0.16842862]
[1731880772060,0.112112,89196.0,89195.0,0.16842862]
[1731880772290,0.112126,89185.0,89184.0,0.004]
[1731880773218,0.112124,89187.0,89184.0,0.004]
[1731880773728,0.11115973,89187.0,89184.0,0.004]
[1731880773967,0.224217,89200.0,89184.0,0.004]
[1731880773968,0.0823,89196.0,89184.0,0.002]
[1731880774198,0.224202,89205.0,89188.0,0.112122]
[1731880774421,0.10906255,89204.0,89193.0,0.002]
[1731880774658,0.224221,89198.0,89185.0,0.224252]
[1731880774879,0.224221,89198.0,89181.0,0.16842862]
[1731880774880,0.33328355,89198.0,89190.0,0.16842862]
[1731880775120,0.10906255,89198.0,89190.0,0.39266762]
[1731880775346,0.10906255,89198.0,89190.0,0.16842862]
[1731880775574,0.0823,89207.0,89190.0,0.16842862]
[1731880775805,0.10906255,89207.0,89197.0,0.224222]
[1731880776037,0.004,89198.0,89197.0,0.112111]
[1731880776507,0.10906255,89214.0,89196.0,0.224225]
[1731880776741,0.2258886,89215.0,89195.0,0.023]
[1731880776742,0.0017096,89215.0,89195.0,0.023]
[1731880776985,0.0017096,89215.0,89213.0,0.11209]
[1731880777216,0.0017096,89215.0,89211.0,0.112092]
[1731880777465,0.0017096,89215.0,89209.0,0.224192]
[1731880777717,0.0017096,89215.0,89210.0,0.16842862]
[1731880777942,0.0017096,89215.0,89214.0,0.11209]
[1731880778645,0.0017096,89215.0,89211.0,0.002]
[1731880778868,0.0017096,89215.0,89214.0,0.11209]
[1731880779099,0.0057096,89215.0,89214.0,0.11409]
[1731880779327,0.0057096,89215.0,89214.0,0.002]
[1731880779328,0.1177976,89215.0,89214.0,0.002]
[1731880779552,0.0057096,89215.0,89214.0,0.002]
[1731880779771,0.1177976,89215.0,89214.0,0.002]
[1731880780752,0.1177976,89215.0,89181.0,0.16842862]
[1731880780753,0.34067215,89215.0,89181.0,0.16842862]
[1731880781000,0.098161,89191.0,89184.0,0.1129791]
[1731880781249,0.098161,89191.0,89184.0,0.0008531]
[1731880781477,0.224234,89193.0,89184.0,0.0008531]
[1731880781478,0.112126,89185.0,89184.0,0.0008531]
[1731880782646,0.116126,89185.0,89184.0,0.0018531]
[1731880783815,0.006,89185.0,89184.0,0.0008531]
[1731880784045,0.004,89185.0,89184.0,0.0008531]
[1731880784272,0.008,89185.0,89184.0,0.0008531]
[1731880784500,0.004,89185.0,89184.0,0.0008531]
[1731880784727,0.1,89192.0,89184.0,0.0008531]
[1731880784964,0.005,89185.0,89184.0,0.0008531]
[1731880785217,0.003,89185.0,89184.0,0.1129801]
[1731880785470,0.003,89185.0,89184.0,0.11522255]
[1731880785471,0.027,89185.0,89184.0,0.11522255]
[1731880785695,0.031,89185.0,89184.0,0.1129801]
[1731880786636,0.004,89185.0,89184.0,0.1129801]
[1731880786863,0.11211,89198.0,89184.0,0.0008531]
[1731880787099,0.027,89192.0,89191.0,0.112118]
[1731880787329,0.112109,89199.0,89193.0,0.112115]
[1731880787552,0.03459411,89198.0,89195.0,0.112113]
[1731880787794,0.03459411,89197.0,89191.0,0.224237]
[1731880788011,0.03459411,89196.0,89193.0,0.112116]
[1731880788239,0.03459411,89197.0,89187.0,0.224245]
[1731880788458,0.027,89198.0,89191.0,0.112118]
[1731880788459,0.14670711,89196.0,89191.0,0.112118]
[1731880788676,0.03459411,89195.0,89191.0,0.112118]
[1731880788890,0.03459411,89194.0,89191.0,0.112118]
[1731880789132,0.03459411,89193.0,89191.0,0.112118]
[1731880789407,0.03459411,89192.0,89191.0,0.112118]
[1731880790350,0.027,89193.0,89192.0,0.112117]
[1731880790578,0.10906255,89204.0,89184.0,0.0008531]
[1731880790807,0.025,89194.0,89193.0,0.112116]
[1731880791030,0.05963778,89194.0,89193.0,0.112116]
[1731880791260,0.03463778,89194.0,89193.0,0.112116]
[1731880791931,0.03463778,89194.0,89191.0,0.2250883]
[1731880792159,0.112117,89192.0,89191.0,0.0008533]
[1731880792623,0.14675478,89192.0,89191.0,0.0008533]
[1731880794061,0.59501275,89192.0,89191.0,0.0008533]
[1731880794289,0.59501275,89192.0,89179.0,0.16842862]
[1731880794290,0.212132,89180.0,89179.0,0.16842862]
[1731880794522,0.35583233,89180.0,89179.0,0.16842862]
[1731880795005,0.35583233,89180.0,89171.0,0.0008535]
[1731880795006,0.112142,89172.0,89171.0,0.0008535]
[1731880795229,0.25584233,89172.0,89171.0,0.0008535]
[1731880796646,0.43684233,89172.0,89171.0,0.0008535]
[1731880797373,0.46384233,89172.0,89171.0,0.0008535]
[1731880797838,0.40984233,89172.0,89171.0,0.0008535]
[1731880798575,0.37520455,89172.0,89171.0,0.0008535]
[1731880799702,0.27520455,89172.0,89171.0,0.0008535]
[1731880799954,0.054,89172.0,89171.0,0.0008535]
[1731880800660,0.166142,89172.0,89171.0,0.0008535]
[1731880800910,0.27520455,89172.0,89171.0,0.0008535]
[1731880803503,0.28558237,89172.0,89171.0,0.0008535]
[1731880803723,0.36198237,89172.0,89171.0,0.0008535]
[1731880804673,0.35160455,89172.0,89171.0,0.0008535]
[1731880805140,0.36197985,89172.0,89171.0,0.0008535]
[1731880805371,0.35160455,89172.0,89171.0,0.0008535]
[1731880806080,0.50330455,89172.0,89171.0,0.0008535]
[1731880806313,0.50830455,89172.0,89171.0,0.0008535]
[1731880806785,1.07828645,89172.0,89171.0,0.0008535]
[1731880807043,0.21216,89158.0,89157.0,0.16842862]
[1731880807289,0.32122255,89158.0,89157.0,0.16842862]
[1731880807767,0.32122255,89158.0,89144.0,0.16842862]
[1731880807768,0.112176,89145.0,89144.0,0.16842862]
[1731880808005,0.22123855,89145.0,89144.0,0.16842862]
[1731880808528,0.1122,89126.0,89125.0,0.16842862]
[1731880808763,0.22126255,89126.0,89125.0,0.16842862]
[1731880809252,0.10906255,89126.0,89104.0,0.16842862]
[1731880809489,0.112215,89115.0,89105.0,0.224452]
[1731880809744,0.10906255,89125.0,89109.0,0.224442]
[1731880810009,0.16842862,89136.0,89123.0,0.224408]
[1731880810250,0.10906255,89135.0,89116.0,0.224426]
[1731880810491,0.112193,89132.0,89119.0,0.224419]
[1731880810768,0.027,89126.0,89125.0,0.112201]
[1731880811249,0.027,89126.0,89113.0,0.112217]
[1731880811488,0.027,89126.0,89117.0,0.16842862]
[1731880811728,0.027,89126.0,89122.0,0.112205]
[1731880811975,0.054,89126.0,89122.0,0.112205]
[1731880812206,0.054,89126.0,89117.0,0.16842862]
[1731880812447,0.027,89126.0,89125.0,0.112201]
[1731880813436,0.054,89126.0,89125.0,0.112201]
[1731880813668,0.054,89126.0,89110.0,0.229441]
[1731880813669,0.13606255,89126.0,89110.0,0.11222]
[1731880813929,0.112214,89115.0,89114.0,0.16842862]
[1731880814406,0.22442,89119.0,89105.0,0.16842862]
[1731880814669,0.10906255,89125.0,89106.0,0.224451]
[1731880814895,0.10906255,89125.0,89108.0,0.224446]
[1731880815150,0.10906255,89125.0,89114.0,0.112215]
[1731880815380,0.10906255,89125.0,89107.0,0.224449]
[1731880815619,0.18826455,89125.0,89112.0,0.112217]
[1731880815870,0.027,89119.0,89106.0,0.224451]
[1731880816132,0.027,89119.0,89113.0,0.112216]
[1731880816372,0.027,89119.0,89110.0,0.112219]
[1731880816611,0.027,89119.0,89108.0,0.0008533]
[1731880816869,0.07606255,89125.0,89109.0,0.224444]
[1731880817093,0.07606255,89125.0,89108.0,0.0008533]
[1731880817350,0.10306255,89125.0,89108.0,0.0008533]
[1731880817602,0.13006255,89125.0,89108.0,0.0008533]
[1731880817829,0.07606255,89125.0,89118.0,0.11221]
[1731880818056,0.13006255,89125.0,89115.0,0.224427]
[1731880818289,0.13006255,89125.0,89116.0,0.112212]
[1731880818543,0.10306255,89125.0,89110.0,0.224441]
[1731880818782,0.10306255,89125.0,89112.0,0.224436]
[1731880819015,0.13006255,89125.0,89110.0,0.224441]
[1731880819239,0.13006255,89125.0,89116.0,0.112213]
[1731880819240,0.10306255,89125.0,89116.0,0.112213]
[1731880819480,0.10306255,89125.0,89108.0,0.0008533]
[1731880819733,0.13006255,89125.0,89108.0,0.0008533]
[1731880819987,0.10306255,89125.0,89120.0,0.112207]
[1731880820214,0.13006255,89125.0,89114.0,0.112214]
[1731880820437,0.10306255,89125.0,89115.0,0.112213]
[1731880820664,0.07606255,89125.0,89116.0,0.112212]
[1731880820899,0.13006255,89125.0,89108.0,0.0008533]
[1731880821121,0.10306255,89125.0,89117.0,0.112211]
[1731880821351,0.10306255,89125.0,89108.0,0.0008533]
[1731880821594,0.07606255,89125.0,89111.0,0.224439]
[1731880821815,0.10306255,89125.0,89108.0,0.0008533]
[1731880822049,0.10306255,89125.0,89116.0,0.112213]
[1731880822316,0.07606255,89125.0,89108.0,0.0008533]
[1731880822554,0.07606255,89125.0,89124.0,0.112203]
[1731880822555,0.054,89125.0,89124.0,0.112203]
[1731880822790,0.027,89125.0,89124.0,0.112203]
[1731880823020,0.054,89125.0,89124.0,0.112203]
[1731880823473,0.027,89125.0,89124.0,0.112203]
[1731880823704,0.027,89125.0,89124.0,0.24926555]
[1731880823705,0.054,89125.0,89124.0,0.24926555]
[1731880823945,0.027,89125.0,89124.0,0.45871755]
[1731880824178,0.054,89125.0,89124.0,0.45871755]
[1731880824646,0.027,89125.0,89124.0,0.53306612]
[1731880824925,0.032,89125.0,89124.0,0.53306612]
[1731880825150,0.032,89125.0,89124.0,0.61316612]
[1731880825381,0.005,89125.0,89124.0,0.61316612]
[1731880825608,0.005,89125.0,89124.0,0.61416612]
[1731880825833,0.16842862,89150.0,89131.0,0.005]
[1731880826065,0.16842862,89141.0,89128.0,0.005]
[1731880826307,0.16842862,89150.0,89138.0,0.224368]
[1731880826533,0.16842862,89150.0,89129.0,0.224393]
[1731880826534,0.16842862,89150.0,89140.0,0.224366]
[1731880826764,0.112167,89153.0,89143.0,0.112178]
[1731880826998,0.10906255,89152.0,89125.0,0.224403]
[1731880827233,0.10906255,89152.0,89139.0,0.112183]
[1731880827234,0.112172,89149.0,89139.0,0.112183]
[1731880827506,0.22123555,89148.0,89139.0,0.112183]
[1731880827779,0.112175,89147.0,89140.0,0.001]
[1731880828009,0.22123855,89146.0,89140.0,0.001]
[1731880828245,0.22123855,89146.0,89137.0,0.224373]
[1731880828246,0.10906255,89146.0,89137.0,0.224373]
[1731880828478,0.10906255,89146.0,89136.0,0.16842862]
[1731880828479,0.002,89141.0,89136.0,0.16842862]
[1731880828712,0.002,89141.0,89139.0,0.002]
[1731880828948,0.22124555,89140.0,89139.0,0.002]
[1731880830132,0.22124555,89140.0,89139.0,0.008]
[1731880830133,0.22224555,89140.0,89139.0,0.008]
[1731880830361,0.112192,89133.0,89120.0,0.224415]
[1731880830583,0.22125555,89132.0,89125.0,0.112201]
[1731880830807,0.22125555,89132.0,89120.0,0.224415]
[1731880831033,0.22125555,89132.0,89126.0,0.28062862]
[1731880831303,0.10906255,89132.0,89116.0,0.224426]
[1731880831578,0.112203,89124.0,89114.0,0.16842862]
[1731880831791,0.112204,89123.0,89117.0,0.112211]